[Event "Titled Tuesday Blitz April 05 Late 2022"]
[White "Mkrtchyan, Mariam"]
[Black "Shimanov, Aleksandr"]
[WhiteFideId "13310828"]
[BlackFideId "4198603"]
[WhiteElo "1984"]
[BlackElo "2636"]
[Result "1/2-1/2"]
[Round "08"]
[TimeControl "180+1"]
[Date "2022.04.05"]
[WhiteClock "0:00:07"]
[BlackClock "0:00:06"]

1. d4 {[%clk 0:03:00]}  g6 {[%clk 0:02:50]} 2. e4 {[%clk 0:02:59]}  d6 {[%clk 0:02:46]} 3. f4 {[%clk 0:02:52]}  Nf6 {[%clk 0:02:42]} 4. Nc3 {[%clk 0:02:51]}  Bg7 {[%clk 0:02:42]} 5. Nf3 {[%clk 0:02:49]}  O-O {[%clk 0:02:42]} 6. Bd3 {[%clk 0:02:46]}  Nc6 {[%clk 0:02:42]} 7. O-O {[%clk 0:02:42]}  Bg4 {[%clk 0:02:35]} 8. e5 {[%clk 0:02:33]}  dxe5 {[%clk 0:02:33]} 9. dxe5 {[%clk 0:02:29]}  Nd5 {[%clk 0:02:33]} 10. h3 {[%clk 0:02:25]}  Nxc3 {[%clk 0:02:32]} 11. bxc3 {[%clk 0:02:24]}  Bf5 {[%clk 0:02:32]} 12. Be3 {[%clk 0:02:14]}  Qd7 {[%clk 0:02:10]} 13. Qe2 {[%clk 0:02:09]}  Bxd3 {[%clk 0:01:50]} 14. cxd3 {[%clk 0:02:05]}  b5 {[%clk 0:01:50]} 15. Bc5 {[%clk 0:01:46]}  Rfd8 {[%clk 0:01:49]} 16. d4 {[%clk 0:01:41]}  a6 {[%clk 0:01:48]} 17. Ng5 {[%clk 0:01:33]}  Qd5 {[%clk 0:01:40]} 18. Rae1 {[%clk 0:01:29]}  f5 {[%clk 0:01:16]} 19. exf6 {[%clk 0:01:25]}  exf6 {[%clk 0:01:16]} 20. Qe6+ {[%clk 0:01:17]}  Qxe6 {[%clk 0:01:16]} 21. Nxe6 {[%clk 0:01:15]}  Rd7 {[%clk 0:01:16]} 22. Nxg7 {[%clk 0:01:12]}  Kxg7 {[%clk 0:01:14]} 23. Re6 {[%clk 0:01:12]}  Na5 {[%clk 0:01:09]} 24. f5 {[%clk 0:01:11]}  g5 {[%clk 0:01:06]} 25. Rfe1 {[%clk 0:01:07]}  Rad8 {[%clk 0:00:52]} 26. Be7 {[%clk 0:00:54]}  Rg8 {[%clk 0:00:44]} 27. Bxf6+ {[%clk 0:00:50]}  Kf7 {[%clk 0:00:45]} 28. Be5 {[%clk 0:00:43]}  Nc4 {[%clk 0:00:43]} 29. Rxa6 {[%clk 0:00:39]}  Re8 {[%clk 0:00:40]} 30. Rh6 {[%clk 0:00:29]}  Kg8 {[%clk 0:00:40]} 31. Re6 {[%clk 0:00:24]}  Ra8 {[%clk 0:00:39]} 32. Re2 {[%clk 0:00:21]}  Kf7 {[%clk 0:00:36]} 33. g4 {[%clk 0:00:18]}  Ra3 {[%clk 0:00:36]} 34. d5 {[%clk 0:00:15]}  Nxe5 {[%clk 0:00:32]} 35. R2xe5 {[%clk 0:00:09]}  Rxc3 {[%clk 0:00:33]} 36. Rc6 {[%clk 0:00:09]}  Rxh3 {[%clk 0:00:28]} 37. Kg2 {[%clk 0:00:08]}  Rd3 {[%clk 0:00:28]} 38. Rc5 {[%clk 0:00:08]}  Rd2+ {[%clk 0:00:24]} 39. Kg3 {[%clk 0:00:07]}  Rxa2 {[%clk 0:00:25]} 40. Rxb5 {[%clk 0:00:07]}  Ra3+ {[%clk 0:00:24]} 41. Kg2 {[%clk 0:00:07]}  Ra6 {[%clk 0:00:16]} 42. Rc5 {[%clk 0:00:06]}  Rb6 {[%clk 0:00:15]} 43. Kf3 {[%clk 0:00:06]}  Rb3+ {[%clk 0:00:14]} 44. Kf2 {[%clk 0:00:07]}  Rb4 {[%clk 0:00:15]} 45. Kf3 {[%clk 0:00:07]}  Rd4 {[%clk 0:00:15]} 46. Kg3 {[%clk 0:00:06]}  Rd3+ {[%clk 0:00:15]} 47. Kf2 {[%clk 0:00:06]}  Kg7 {[%clk 0:00:09]} 48. Kg2 {[%clk 0:00:05]}  Rd4 {[%clk 0:00:09]} 49. Kf3 {[%clk 0:00:05]}  Kf6 {[%clk 0:00:09]} 50. Re6+ {[%clk 0:00:05]}  Kf7 {[%clk 0:00:09]} 51. Re5 {[%clk 0:00:06]}  Kf8 {[%clk 0:00:10]} 52. Kf2 {[%clk 0:00:06]}  Rb4 {[%clk 0:00:09]} 53. Kf3 {[%clk 0:00:06]}  Rb6 {[%clk 0:00:09]} 54. Kf2 {[%clk 0:00:06]}  Kg7 {[%clk 0:00:09]} 55. Kf3 {[%clk 0:00:06]}  Ra6 {[%clk 0:00:09]} 56. Kf2 {[%clk 0:00:06]}  h5 {[%clk 0:00:09]} 57. gxh5 {[%clk 0:00:06]}  Kh6 {[%clk 0:00:10]} 58. Re6+ {[%clk 0:00:06]}  Rxe6 {[%clk 0:00:09]} 59. fxe6 {[%clk 0:00:07]}  Re7 {[%clk 0:00:10]} 60. Kf3 {[%clk 0:00:05]}  Kxh5 {[%clk 0:00:10]} 61. Ke4 {[%clk 0:00:06]}  g4 {[%clk 0:00:10]} 62. Kf4 {[%clk 0:00:06]}  Rg7 {[%clk 0:00:07]} 63. Rc1 {[%clk 0:00:05]}  g3 {[%clk 0:00:05]} 64. Rh1+ {[%clk 0:00:05]}  Kg6 {[%clk 0:00:06]} 65. Kxg3 {[%clk 0:00:05]}  Kf5+ {[%clk 0:00:06]} 66. Kf3 {[%clk 0:00:06]}  Ke5 {[%clk 0:00:07]} 67. Rd1 {[%clk 0:00:06]}  Kd6 {[%clk 0:00:06]} 68. Kf4 {[%clk 0:00:06]}  Rg2 {[%clk 0:00:06]} 69. Kf5 {[%clk 0:00:06]}  Rf2+ {[%clk 0:00:06]} 70. Kg6 {[%clk 0:00:06]}  Rf3 {[%clk 0:00:06]} 71. Kg7 {[%clk 0:00:06]}  Ke7 {[%clk 0:00:06]} 72. Rd2 {[%clk 0:00:07]}  Rg3+ {[%clk 0:00:06]} 73. Kh6 {[%clk 0:00:07]}  Kf6 {[%clk 0:00:06]} 74. Kh5 {[%clk 0:00:07]}  Rg5+ {[%clk 0:00:06]} 75. Kh4 {[%clk 0:00:07]}  Rg1 {[%clk 0:00:07]} 76. Kh3 {[%clk 0:00:07]}  Ke7 {[%clk 0:00:06]} 77. Re2 {[%clk 0:00:07]}  Rg5 {[%clk 0:00:06]} 1/2-1/2


[Site "https://www.chess.com"]

[Event "Titled Tuesday Blitz April 05 Late 2022"]
[White "Mohammadian, Mohammad"]
[Black "Petrova, Irina"]
[WhiteFideId "12566055"]
[BlackFideId "14124122"]
[WhiteElo "1544"]
[BlackElo "1993"]
[Result "0-1"]
[Round "08"]
[TimeControl "180+1"]
[Date "2022.04.06"]
[WhiteClock "0:00:03"]
[BlackClock "0:00:56"]

1. e4 {[%clk 0:03:00]}  d6 {[%clk 0:03:00]} 2. d4 {[%clk 0:02:59]}  Nf6 {[%clk 0:03:01]} 3. Bd3 {[%clk 0:02:55]}  e5 {[%clk 0:03:01]} 4. d5 {[%clk 0:02:55]}  Be7 {[%clk 0:03:01]} 5. Nf3 {[%clk 0:02:55]}  c6 {[%clk 0:03:00]} 6. c4 {[%clk 0:02:54]}  O-O {[%clk 0:03:00]} 7. Nc3 {[%clk 0:02:52]}  h6 {[%clk 0:02:57]} 8. Be3 {[%clk 0:02:52]}  Ng4 {[%clk 0:02:45]} 9. O-O {[%clk 0:02:49]}  Nxe3 {[%clk 0:02:44]} 10. fxe3 {[%clk 0:02:49]}  Na6 {[%clk 0:02:32]} 11. Ne2 {[%clk 0:02:47]}  Qb6 {[%clk 0:02:24]} 12. Qd2 {[%clk 0:02:44]}  Nc5 {[%clk 0:02:22]} 13. Bc2 {[%clk 0:02:39]}  Qxb2 {[%clk 0:02:13]} 14. Rfb1 {[%clk 0:02:27]}  Qa3 {[%clk 0:02:11]} 15. Ng3 {[%clk 0:02:15]}  Qa6 {[%clk 0:02:00]} 16. Qe2 {[%clk 0:01:59]}  cxd5 {[%clk 0:01:56]} 17. exd5 {[%clk 0:01:58]}  f5 {[%clk 0:01:55]} 18. e4 {[%clk 0:01:56]}  f4 {[%clk 0:01:54]} 19. Nf5 {[%clk 0:01:39]}  Bxf5 {[%clk 0:01:53]} 20. exf5 {[%clk 0:01:39]}  Bf6 {[%clk 0:01:49]} 21. Rb5 {[%clk 0:01:19]}  e4 {[%clk 0:01:40]} 22. Rab1 {[%clk 0:01:04]}  exf3 {[%clk 0:01:37]} 23. gxf3 {[%clk 0:01:02]}  Qa3 {[%clk 0:01:30]} 24. Qg2 {[%clk 0:00:45]}  Qe3+ {[%clk 0:01:27]} 25. Kh1 {[%clk 0:00:44]}  Rae8 {[%clk 0:01:25]} 26. Bb3 {[%clk 0:00:31]}  Qe1+ {[%clk 0:01:20]} 27. Rxe1 {[%clk 0:00:29]}  Rxe1+ {[%clk 0:01:21]} 28. Qg1 {[%clk 0:00:28]}  Rxg1+ {[%clk 0:01:21]} 29. Kxg1 {[%clk 0:00:28]}  a6 {[%clk 0:01:18]} 30. Rb6 {[%clk 0:00:25]}  Nxb3 {[%clk 0:01:15]} 31. axb3 {[%clk 0:00:23]}  Bd4+ {[%clk 0:01:14]} 32. Kg2 {[%clk 0:00:21]}  Bxb6 {[%clk 0:01:15]} 33. Kh3 {[%clk 0:00:19]}  Re8 {[%clk 0:01:15]} 34. Kg4 {[%clk 0:00:19]}  Re3 {[%clk 0:01:16]} 35. Kxf4 {[%clk 0:00:19]}  Rxb3 {[%clk 0:01:16]} 36. h4 {[%clk 0:00:17]}  Bc5 {[%clk 0:01:16]} 37. f6 {[%clk 0:00:13]}  gxf6 {[%clk 0:01:15]} 38. Kf5 {[%clk 0:00:11]}  Rxf3+ {[%clk 0:01:14]} 39. Kg6 {[%clk 0:00:11]}  a5 {[%clk 0:01:13]} 40. Kxh6 {[%clk 0:00:11]}  a4 {[%clk 0:01:10]} 41. Kg6 {[%clk 0:00:10]}  Rg3+ {[%clk 0:01:10]} 42. Kxf6 {[%clk 0:00:09]}  a3 {[%clk 0:01:09]} 43. h5 {[%clk 0:00:10]}  a2 {[%clk 0:01:09]} 44. h6 {[%clk 0:00:10]}  a1=Q+ {[%clk 0:01:07]} 45. Ke6 {[%clk 0:00:09]}  Qe5+ {[%clk 0:01:07]} 46. Kd7 {[%clk 0:00:08]}  Qf5+ {[%clk 0:01:01]} 47. Kc7 {[%clk 0:00:07]}  Qf7+ {[%clk 0:00:59]} 48. Kb8 {[%clk 0:00:04]}  b5 {[%clk 0:00:58]} 49. cxb5 {[%clk 0:00:03]}  Bb6 {[%clk 0:00:56]} 0-1


[Site "https://www.chess.com"]

[Event "Titled Tuesday Blitz April 05 Late 2022"]
[White "Nasuta, Grzegorz"]
[Black "Vovk, Orest"]
[WhiteFideId "1141686"]
[BlackFideId "14113490"]
[WhiteElo "2396"]
[BlackElo "2203"]
[Result "1/2-1/2"]
[Round "08"]
[TimeControl "180+1"]
[Date "2022.04.05"]
[WhiteClock "0:00:14"]
[BlackClock "0:00:03"]

1. a3 {[%clk 0:02:46]}  g5 {[%clk 0:02:58]} 2. h4 {[%clk 0:02:41]}  g4 {[%clk 0:02:58]} 3. c4 {[%clk 0:02:38]}  g3 {[%clk 0:02:58]} 4. fxg3 {[%clk 0:02:36]}  Nf6 {[%clk 0:02:57]} 5. d3 {[%clk 0:02:32]}  Nh5 {[%clk 0:02:51]} 6. g4 {[%clk 0:02:27]}  Ng3 {[%clk 0:02:50]} 7. Rh3 {[%clk 0:02:27]}  Nxf1 {[%clk 0:02:50]} 8. Kxf1 {[%clk 0:02:28]}  d5 {[%clk 0:02:50]} 9. cxd5 {[%clk 0:02:23]}  Qxd5 {[%clk 0:02:45]} 10. e4 {[%clk 0:02:22]}  Qe6 {[%clk 0:02:32]} 11. Nc3 {[%clk 0:02:17]}  Qxg4 {[%clk 0:02:26]} 12. Qxg4 {[%clk 0:02:18]}  Bxg4 {[%clk 0:02:26]} 13. Rg3 {[%clk 0:02:19]}  h5 {[%clk 0:02:25]} 14. Bf4 {[%clk 0:02:16]}  Na6 {[%clk 0:02:19]} 15. Nf3 {[%clk 0:02:16]}  O-O-O {[%clk 0:02:11]} 16. Ne5 {[%clk 0:02:16]}  Be6 {[%clk 0:02:10]} 17. Rc1 {[%clk 0:02:16]}  Bh6 {[%clk 0:02:06]} 18. Bxh6 {[%clk 0:02:13]}  Rxh6 {[%clk 0:02:06]} 19. Ke2 {[%clk 0:02:13]}  f6 {[%clk 0:01:54]} 20. Ng6 {[%clk 0:02:08]}  Bg4+ {[%clk 0:01:42]} 21. Rxg4 {[%clk 0:02:08]}  hxg4 {[%clk 0:01:42]} 22. Nxe7+ {[%clk 0:02:09]}  Kd7 {[%clk 0:01:39]} 23. Nf5 {[%clk 0:02:09]}  Rh5 {[%clk 0:01:28]} 24. Nd5 {[%clk 0:02:09]}  Rf8 {[%clk 0:01:15]} 25. g3 {[%clk 0:02:09]}  c6 {[%clk 0:01:12]} 26. Nde3 {[%clk 0:02:02]}  Rg8 {[%clk 0:01:07]} 27. Rf1 {[%clk 0:02:02]}  Nc7 {[%clk 0:01:03]} 28. Nd4 {[%clk 0:02:01]}  Ne6 {[%clk 0:00:56]} 29. Nxe6 {[%clk 0:01:48]}  Kxe6 {[%clk 0:00:56]} 30. Rf4 {[%clk 0:01:49]}  Rb5 {[%clk 0:00:52]} 31. b4 {[%clk 0:01:49]}  a5 {[%clk 0:00:52]} 32. Nxg4 {[%clk 0:01:28]}  axb4 {[%clk 0:00:48]} 33. axb4 {[%clk 0:01:27]}  Rf8 {[%clk 0:00:32]} 34. e5 {[%clk 0:01:13]}  f5 {[%clk 0:00:30]} 35. d4 {[%clk 0:01:12]}  Rxb4 {[%clk 0:00:18]} 36. Ne3 {[%clk 0:01:13]}  Rb2+ {[%clk 0:00:16]} 37. Kf3 {[%clk 0:01:00]}  b5 {[%clk 0:00:15]} 38. h5 {[%clk 0:00:51]}  b4 {[%clk 0:00:15]} 39. h6 {[%clk 0:00:51]}  b3 {[%clk 0:00:13]} 40. d5+ {[%clk 0:00:46]}  cxd5 {[%clk 0:00:10]} 41. Rb4 {[%clk 0:00:46]}  Kxe5 {[%clk 0:00:10]} 42. Rb5 {[%clk 0:00:46]}  Rh2 {[%clk 0:00:07]} 43. Rxd5+ {[%clk 0:00:37]}  Kf6 {[%clk 0:00:07]} 44. Rb5 {[%clk 0:00:23]}  Rxh6 {[%clk 0:00:06]} 45. Rxb3 {[%clk 0:00:22]}  Kg5 {[%clk 0:00:06]} 46. Rb7 {[%clk 0:00:21]}  Ra6 {[%clk 0:00:05]} 47. Rb3 {[%clk 0:00:18]}  Ra5 {[%clk 0:00:03]} 48. Rc3 {[%clk 0:00:19]}  Rfa8 {[%clk 0:00:03]} 49. Kf2 {[%clk 0:00:15]}  Ra2+ {[%clk 0:00:04]} 50. Kf3 {[%clk 0:00:15]}  R2a3 {[%clk 0:00:04]} 51. Rxa3 {[%clk 0:00:11]}  Rxa3 {[%clk 0:00:05]} 52. Kf2 {[%clk 0:00:11]}  f4 {[%clk 0:00:04]} 53. gxf4+ {[%clk 0:00:11]}  Kxf4 {[%clk 0:00:05]} 54. Nd5+ {[%clk 0:00:12]}  Ke4 {[%clk 0:00:05]} 55. Nf6+ {[%clk 0:00:12]}  Kf5 {[%clk 0:00:05]} 56. Nd5 {[%clk 0:00:12]}  Ke5 {[%clk 0:00:05]} 57. Ne3 {[%clk 0:00:10]}  Ke4 {[%clk 0:00:05]} 58. Ng2 {[%clk 0:00:09]}  Ra2+ {[%clk 0:00:05]} 59. Kg3 {[%clk 0:00:09]}  Ra3+ {[%clk 0:00:06]} 60. Kg4 {[%clk 0:00:10]}  Ra8 {[%clk 0:00:05]} 61. Kg3 {[%clk 0:00:10]}  Rf8 {[%clk 0:00:05]} 62. Ne1 {[%clk 0:00:07]}  Rg8+ {[%clk 0:00:05]} 63. Kf2 {[%clk 0:00:07]}  Rf8+ {[%clk 0:00:05]} 64. Ke2 {[%clk 0:00:07]}  Ra8 {[%clk 0:00:04]} 65. Kd2 {[%clk 0:00:07]}  Ra2+ {[%clk 0:00:04]} 66. Kc3 {[%clk 0:00:07]}  Re2 {[%clk 0:00:05]} 67. Nc2 {[%clk 0:00:08]}  Kd5 {[%clk 0:00:04]} 68. Nb4+ {[%clk 0:00:07]}  Ke4 {[%clk 0:00:05]} 69. Nc2 {[%clk 0:00:08]}  Rh2 {[%clk 0:00:05]} 70. Nb4 {[%clk 0:00:08]}  Rh3+ {[%clk 0:00:05]} 71. Kc4 {[%clk 0:00:09]}  Rh8 {[%clk 0:00:05]} 72. Kc5 {[%clk 0:00:09]}  Rc8+ {[%clk 0:00:06]} 73. Nc6 {[%clk 0:00:10]}  Rh8 {[%clk 0:00:05]} 74. Kd6 {[%clk 0:00:10]}  Rh1 {[%clk 0:00:06]} 75. Ke6 {[%clk 0:00:10]}  Ra1 {[%clk 0:00:06]} 76. Kd6 {[%clk 0:00:10]}  Rd1+ {[%clk 0:00:06]} 77. Kc5 {[%clk 0:00:11]}  Rc1+ {[%clk 0:00:06]} 78. Kd6 {[%clk 0:00:11]}  Rc2 {[%clk 0:00:06]} 79. Ne7 {[%clk 0:00:11]}  Rd2+ {[%clk 0:00:06]} 80. Ke6 {[%clk 0:00:11]}  Rh2 {[%clk 0:00:06]} 81. Kd6 {[%clk 0:00:11]}  Rh6+ {[%clk 0:00:06]} 82. Kc5 {[%clk 0:00:12]}  Ke5 {[%clk 0:00:06]} 83. Nc6+ {[%clk 0:00:12]}  Ke6 {[%clk 0:00:07]} 84. Nd4+ {[%clk 0:00:13]}  Kd7 {[%clk 0:00:07]} 85. Kd5 {[%clk 0:00:13]}  Rh5+ {[%clk 0:00:07]} 86. Ke4 {[%clk 0:00:13]}  Rh4+ {[%clk 0:00:07]} 87. Kd5 {[%clk 0:00:14]}  Rg4 {[%clk 0:00:06]} 88. Ke5 {[%clk 0:00:13]}  Rg5+ {[%clk 0:00:07]} 89. Ke4 {[%clk 0:00:13]}  Kc7 {[%clk 0:00:06]} 90. Ne6+ {[%clk 0:00:13]}  Kd6 {[%clk 0:00:03]} 91. Nxg5 {[%clk 0:00:14]} 1/2-1/2


[Site "https://www.chess.com"]

[Event "Titled Tuesday Blitz April 05 Late 2022"]
[White "Novikova, Galina"]
[Black "Ozates, Tuna"]
[WhiteFideId "4157095"]
[BlackFideId "6354521"]
[WhiteElo "2378"]
[BlackElo "2549"]
[Result "1-0"]
[Round "08"]
[TimeControl "180+1"]
[Date "2022.04.06"]
[WhiteClock "0:00:05"]
[BlackClock "0:00:14"]

1. e4 {[%clk 0:03:00]}  c5 {[%clk 0:02:55]} 2. Nf3 {[%clk 0:03:00]}  Nc6 {[%clk 0:02:56]} 3. d4 {[%clk 0:02:58]}  cxd4 {[%clk 0:02:56]} 4. Nxd4 {[%clk 0:02:59]}  e5 {[%clk 0:02:55]} 5. Nb5 {[%clk 0:02:58]}  d6 {[%clk 0:02:55]} 6. N1c3 {[%clk 0:02:57]}  a6 {[%clk 0:02:55]} 7. Na3 {[%clk 0:02:58]}  b5 {[%clk 0:02:55]} 8. Nd5 {[%clk 0:02:58]}  Nge7 {[%clk 0:02:55]} 9. c3 {[%clk 0:02:54]}  Nxd5 {[%clk 0:02:55]} 10. exd5 {[%clk 0:02:54]}  Ne7 {[%clk 0:02:56]} 11. g3 {[%clk 0:02:50]}  Bb7 {[%clk 0:02:52]} 12. Bg2 {[%clk 0:02:50]}  h5 {[%clk 0:02:50]} 13. Nc2 {[%clk 0:02:46]}  h4 {[%clk 0:02:50]} 14. O-O {[%clk 0:02:36]}  Ng6 {[%clk 0:02:43]} 15. Nb4 {[%clk 0:02:30]}  hxg3 {[%clk 0:02:34]} 16. hxg3 {[%clk 0:02:26]}  Be7 {[%clk 0:02:22]} 17. Nc6 {[%clk 0:02:25]}  Qd7 {[%clk 0:02:21]} 18. a4 {[%clk 0:02:16]}  bxa4 {[%clk 0:02:18]} 19. Rxa4 {[%clk 0:02:13]}  Bd8 {[%clk 0:02:15]} 20. Be3 {[%clk 0:02:04]}  Ne7 {[%clk 0:02:12]} 21. Qg4 {[%clk 0:01:41]}  Nf5 {[%clk 0:01:47]} 22. Bg5 {[%clk 0:01:14]}  Bxg5 {[%clk 0:01:37]} 23. Qxg5 {[%clk 0:01:14]}  f6 {[%clk 0:01:37]} 24. Qg6+ {[%clk 0:01:11]}  Kf8 {[%clk 0:01:36]} 25. Bf3 {[%clk 0:00:48]}  Rh6 {[%clk 0:01:34]} 26. Qg4 {[%clk 0:00:48]}  g6 {[%clk 0:01:26]} 27. Kg2 {[%clk 0:00:43]}  Kg7 {[%clk 0:01:24]} 28. Rh1 {[%clk 0:00:39]}  Rxh1 {[%clk 0:01:22]} 29. Kxh1 {[%clk 0:00:40]}  Rh8+ {[%clk 0:01:22]} 30. Kg2 {[%clk 0:00:41]}  Bc8 {[%clk 0:01:06]} 31. Rc4 {[%clk 0:00:21]}  Qe8 {[%clk 0:01:04]} 32. Qe4 {[%clk 0:00:15]}  Qg8 {[%clk 0:01:03]} 33. Na7 {[%clk 0:00:09]}  Qh7 {[%clk 0:00:58]} 34. Rc7+ {[%clk 0:00:07]}  Kg8 {[%clk 0:00:47]} 35. Rxh7 {[%clk 0:00:08]}  Kxh7 {[%clk 0:00:43]} 36. Nxc8 {[%clk 0:00:08]}  Rxc8 {[%clk 0:00:44]} 37. Bg4 {[%clk 0:00:07]}  Rb8 {[%clk 0:00:35]} 38. Bxf5 {[%clk 0:00:07]}  gxf5 {[%clk 0:00:36]} 39. Qxf5+ {[%clk 0:00:08]}  Kg7 {[%clk 0:00:37]} 40. Qd7+ {[%clk 0:00:09]}  Kg6 {[%clk 0:00:37]} 41. Qxd6 {[%clk 0:00:08]}  Rxb2 {[%clk 0:00:37]} 42. c4 {[%clk 0:00:09]}  a5 {[%clk 0:00:37]} 43. c5 {[%clk 0:00:09]}  a4 {[%clk 0:00:37]} 44. c6 {[%clk 0:00:10]}  Rc2 {[%clk 0:00:37]} 45. c7 {[%clk 0:00:07]}  a3 {[%clk 0:00:32]} 46. Qxa3 {[%clk 0:00:07]}  Rxc7 {[%clk 0:00:32]} 47. Qd6 {[%clk 0:00:07]}  Rc2 {[%clk 0:00:31]} 48. Qe7 {[%clk 0:00:05]}  Rd2 {[%clk 0:00:25]} 49. d6 {[%clk 0:00:05]}  e4 {[%clk 0:00:25]} 50. d7 {[%clk 0:00:05]}  e3 {[%clk 0:00:26]} 51. d8=Q {[%clk 0:00:04]}  Rxf2+ {[%clk 0:00:26]} 52. Kh3 {[%clk 0:00:03]}  e2 {[%clk 0:00:26]} 53. Qg8+ {[%clk 0:00:03]}  Kf5 {[%clk 0:00:23]} 54. Qgh7+ {[%clk 0:00:04]}  Kg5 {[%clk 0:00:22]} 55. Qee4 {[%clk 0:00:05]}  f5 {[%clk 0:00:13]} 56. Qhh4+ {[%clk 0:00:06]}  Kg6 {[%clk 0:00:13]} 57. Qe6+ {[%clk 0:00:06]}  Kg7 {[%clk 0:00:14]} 58. Qhe7+ {[%clk 0:00:06]}  Kh8 {[%clk 0:00:14]} 59. Qc8# {[%clk 0:00:05]} 1-0


[Site "https://www.chess.com"]

[Event "Titled Tuesday Blitz April 05 Late 2022"]
[White "Piesik, Piotr"]
[Black "Hnydiuk, Aleksander"]
[WhiteFideId "1136194"]
[BlackFideId "1109057"]
[WhiteElo "2190"]
[BlackElo "2374"]
[Result "1/2-1/2"]
[Round "08"]
[TimeControl "180+1"]
[Date "2022.04.05"]
[WhiteClock "0:00:06"]
[BlackClock "0:00:06"]

1. Nf3 {[%clk 0:02:36]}  Nf6 {[%clk 0:02:57]} 2. g3 {[%clk 0:02:36]}  d5 {[%clk 0:02:57]} 3. Bg2 {[%clk 0:02:36]}  Nbd7 {[%clk 0:02:58]} 4. O-O {[%clk 0:02:37]}  e5 {[%clk 0:02:57]} 5. d3 {[%clk 0:02:38]}  Bd6 {[%clk 0:02:57]} 6. Nbd2 {[%clk 0:02:39]}  O-O {[%clk 0:02:57]} 7. e4 {[%clk 0:02:39]}  c6 {[%clk 0:02:58]} 8. Qe2 {[%clk 0:02:39]}  Re8 {[%clk 0:02:58]} 9. a4 {[%clk 0:02:39]}  a5 {[%clk 0:02:47]} 10. Nb3 {[%clk 0:02:38]}  Nf8 {[%clk 0:02:39]} 11. Bd2 {[%clk 0:02:37]}  b6 {[%clk 0:02:36]} 12. Rfd1 {[%clk 0:02:35]}  Ba6 {[%clk 0:02:32]} 13. Qe1 {[%clk 0:02:35]}  Rc8 {[%clk 0:02:31]} 14. Bc3 {[%clk 0:02:33]}  c5 {[%clk 0:02:20]} 15. exd5 {[%clk 0:02:33]}  Nxd5 {[%clk 0:02:21]} 16. Nfd2 {[%clk 0:02:24]}  Nb4 {[%clk 0:01:53]} 17. Rac1 {[%clk 0:02:16]}  Qc7 {[%clk 0:01:52]} 18. Nc4 {[%clk 0:02:11]}  f6 {[%clk 0:01:41]} 19. Nxd6 {[%clk 0:02:10]}  Qxd6 {[%clk 0:01:40]} 20. Nd2 {[%clk 0:02:10]}  Ne6 {[%clk 0:01:35]} 21. Bxb4 {[%clk 0:01:51]}  cxb4 {[%clk 0:01:34]} 22. Nc4 {[%clk 0:01:51]}  Qc5 {[%clk 0:01:27]} 23. b3 {[%clk 0:01:48]}  Nd4 {[%clk 0:01:25]} 24. Qe4 {[%clk 0:01:43]}  Red8 {[%clk 0:01:17]} 25. Re1 {[%clk 0:01:41]}  Rc7 {[%clk 0:01:00]} 26. Kh1 {[%clk 0:01:39]}  Bb7 {[%clk 0:00:59]} 27. Qe3 {[%clk 0:01:32]}  Bxg2+ {[%clk 0:00:58]} 28. Kxg2 {[%clk 0:01:33]}  Rdd7 {[%clk 0:00:43]} 29. Qe4 {[%clk 0:01:31]}  Re7 {[%clk 0:00:41]} 30. Ne3 {[%clk 0:01:21]}  Rcd7 {[%clk 0:00:33]} 31. Nc4 {[%clk 0:01:16]}  Kf7 {[%clk 0:00:29]} 32. Qxh7 {[%clk 0:01:14]}  Qd5+ {[%clk 0:00:27]} 33. Qe4 {[%clk 0:01:13]}  Qxe4+ {[%clk 0:00:27]} 34. Rxe4 {[%clk 0:01:08]}  Re6 {[%clk 0:00:24]} 35. g4 {[%clk 0:00:56]}  g5 {[%clk 0:00:23]} 36. Ne3 {[%clk 0:00:51]}  Kg6 {[%clk 0:00:21]} 37. Rh1 {[%clk 0:00:46]}  Rc6 {[%clk 0:00:19]} 38. h4 {[%clk 0:00:45]}  gxh4 {[%clk 0:00:16]} 39. Rxh4 {[%clk 0:00:44]}  Nxc2 {[%clk 0:00:16]} 40. Nf5 {[%clk 0:00:43]}  Rh7 {[%clk 0:00:14]} 41. Rxh7 {[%clk 0:00:37]}  Kxh7 {[%clk 0:00:15]} 42. f4 {[%clk 0:00:27]}  exf4 {[%clk 0:00:13]} 43. Re7+ {[%clk 0:00:26]}  Kg8 {[%clk 0:00:11]} 44. Kf3 {[%clk 0:00:23]}  Rc3 {[%clk 0:00:09]} 45. Rd7 {[%clk 0:00:19]}  Rxb3 {[%clk 0:00:08]} 46. Kxf4 {[%clk 0:00:18]}  Rc3 {[%clk 0:00:08]} 47. Ne7+ {[%clk 0:00:15]}  Kf8 {[%clk 0:00:07]} 48. Nd5 {[%clk 0:00:15]}  Rxd3 {[%clk 0:00:06]} 49. Nxb6 {[%clk 0:00:10]}  Rxd7 {[%clk 0:00:05]} 50. Nxd7+ {[%clk 0:00:11]}  Ke7 {[%clk 0:00:06]} 51. Nc5 {[%clk 0:00:11]}  Kd6 {[%clk 0:00:06]} 52. Nb7+ {[%clk 0:00:11]}  Kd5 {[%clk 0:00:06]} 53. Nxa5 {[%clk 0:00:12]}  Nd4 {[%clk 0:00:06]} 54. Ke3 {[%clk 0:00:09]}  b3 {[%clk 0:00:05]} 55. Nxb3 {[%clk 0:00:07]}  Nxb3 {[%clk 0:00:06]} 56. Kf4 {[%clk 0:00:06]}  Ke6 {[%clk 0:00:06]} 57. g5 {[%clk 0:00:05]}  fxg5+ {[%clk 0:00:06]} 58. Kxg5 {[%clk 0:00:06]}  Kd5 {[%clk 0:00:06]} 59. a5 {[%clk 0:00:06]}  Nxa5 {[%clk 0:00:06]} 1/2-1/2


[Site "https://www.chess.com"]